[Event "Late-Titled-Tuesday-Blitz-March-26-2024"]
[Site "Chess.com"]
[Date "2024.03.26"]
[Round "8"]
[White "TimGrutter03"]
[Black "MyDream003"]
[Result "0-1"]
[WhiteElo "2605"]
[BlackElo "2798"]
[TimeControl "180+1"]
[EndTime "15:29:01 PDT"]
[Termination "MyDream003 won on time"]

1. e4 {[%clk 0:02:52.3]} 1... c5 {[%clk 0:02:48.2]} 2. Nf3 {[%clk 0:02:49.7]}
2... d6 {[%clk 0:02:48.2]} 3. d4 {[%clk 0:02:49.7]} 3... cxd4 {[%clk 0:02:49.1]}
4. Nxd4 {[%clk 0:02:50.3]} 4... Nf6 {[%clk 0:02:49.8]} 5. Nc3 {[%clk 0:02:50.7]}
5... a6 {[%clk 0:02:50.2]} 6. h4 {[%clk 0:02:51.3]} 6... h5 {[%clk 0:02:46.3]}
7. Bg5 {[%clk 0:02:49.6]} 7... e6 {[%clk 0:02:46.7]} 8. f4 {[%clk 0:02:45.2]}
8... Qc7 {[%clk 0:02:42.7]} 9. Be2 {[%clk 0:02:42.6]} 9... Nbd7 {[%clk
0:02:39.2]} 10. Qd2 {[%clk 0:02:35.6]} 10... b5 {[%clk 0:02:38.4]} 11. Bf3
{[%clk 0:02:35.3]} 11... Bb7 {[%clk 0:02:36.1]} 12. a3 {[%clk 0:02:30.2]} 12...
Rc8 {[%clk 0:02:32.3]} 13. O-O {[%clk 0:02:25.6]} 13... Be7 {[%clk 0:02:29.7]}
14. Rad1 {[%clk 0:02:18.3]} 14... Nb6 {[%clk 0:02:18.2]} 15. e5 {[%clk
0:01:57.5]} 15... dxe5 {[%clk 0:02:01.7]} 16. fxe5 {[%clk 0:01:57.6]} 16... Nc4
{[%clk 0:01:35.4]} 17. Qe2 {[%clk 0:01:47.8]} 17... Bxf3 {[%clk 0:01:25.7]} 18.
Nxf3 {[%clk 0:01:38]} 18... Bc5+ {[%clk 0:01:19.2]} 19. Kh1 {[%clk 0:01:36.2]}
19... Ng4 {[%clk 0:01:19.3]} 20. Ne4 {[%clk 0:01:27.2]} 20... O-O {[%clk
0:01:19.7]} 21. Bf4 {[%clk 0:01:11.7]} 21... Nce3 {[%clk 0:01:07.2]} 22. Bxe3
{[%clk 0:01:07.3]} 22... Bxe3 {[%clk 0:01:04.1]} 23. c3 {[%clk 0:00:54.7]} 23...
Bf4 {[%clk 0:00:59.2]} 24. Nd6 {[%clk 0:00:47.8]} 24... Rcd8 {[%clk 0:00:56.9]}
25. Qe4 {[%clk 0:00:38.4]} 25... Bxe5 {[%clk 0:00:43.1]} 26. Nxe5 {[%clk
0:00:36.4]} 26... Rxd6 {[%clk 0:00:42.9]} 27. Nxg4 {[%clk 0:00:33.1]} 27... hxg4
{[%clk 0:00:38.8]} 28. Qxg4 {[%clk 0:00:26.7]} 28... Rfd8 {[%clk 0:00:38.9]} 29.
Rxd6 {[%clk 0:00:25.4]} 29... Qxd6 {[%clk 0:00:39.3]} 30. h5 {[%clk 0:00:22.8]}
30... Qd3 {[%clk 0:00:31.3]} 31. Rf3 {[%clk 0:00:16]} 31... Qb1+ {[%clk
0:00:25.2]} 32. Kh2 {[%clk 0:00:16.1]} 32... Rd1 {[%clk 0:00:25.4]} 33. Qf4
{[%clk 0:00:04.8]} 33... f6 {[%clk 0:00:20.1]} 34. Qb8+ {[%clk 0:00:01.8]} 34...
Kh7 {[%clk 0:00:19.8]} 35. Qf4 {[%clk 0:00:02.3]} 35... Rh1+ {[%clk 0:00:17.6]}
36. Kg3 {[%clk 0:00:02.7]} 36... Qe1+ {[%clk 0:00:15.9]} 37. Rf2 {[%clk
0:00:03]} 37... Rxh5 {[%clk 0:00:15.6]} 38. Qf3 {[%clk 0:00:02.2]} 38... Qe5+
{[%clk 0:00:12.1]} 39. Qf4 {[%clk 0:00:01.7]} 39... Rg5+ {[%clk 0:00:11.2]} 40.
Kh2 {[%clk 0:00:01.4]} 40... Rh5+ {[%clk 0:00:08]} 41. Kg1 {[%clk 0:00:01.5]}
41... Qxf4 {[%clk 0:00:08.5]} 42. Rxf4 {[%clk 0:00:01.6]} 42... Rd5 {[%clk
0:00:09.4]} 43. Rf2 {[%clk 0:00:01.5]} 43... Kg6 {[%clk 0:00:09.2]} 44. Re2
{[%clk 0:00:02]} 44... e5 {[%clk 0:00:09.5]} 45. Kf2 {[%clk 0:00:02.7]} 45...
Kf5 {[%clk 0:00:10.1]} 46. Ke3 {[%clk 0:00:03.1]} 46... Ke6 {[%clk 0:00:09.7]}
47. g4 {[%clk 0:00:02.7]} 47... g6 {[%clk 0:00:09.7]} 48. Rh2 {[%clk 0:00:02.9]}
48... Rd1 {[%clk 0:00:08.8]} 49. Rh6 {[%clk 0:00:02.9]} 49... g5 {[%clk
0:00:06.1]} 50. Rh7 {[%clk 0:00:02.3]} 50... Rg1 {[%clk 0:00:06.2]} 51. Ra7
{[%clk 0:00:02.5]} 51... Rg3+ {[%clk 0:00:06.1]} 52. Kf2 {[%clk 0:00:02.1]}
52... Rxg4 {[%clk 0:00:07]} 53. Rxa6+ {[%clk 0:00:02.7]} 53... Kf5 {[%clk
0:00:06.5]} 54. Rb6 {[%clk 0:00:02.6]} 54... Rf4+ {[%clk 0:00:06.8]} 55. Ke2
{[%clk 0:00:03.1]} 55... g4 {[%clk 0:00:07.4]} 56. Rxb5 {[%clk 0:00:03.5]} 56...
g3 {[%clk 0:00:08]} 57. Rb8 {[%clk 0:00:03.9]} 57... Rf2+ {[%clk 0:00:08.4]} 58.
Ke3 {[%clk 0:00:03]} 58... Rc2 {[%clk 0:00:06.9]} 59. Rg8 {[%clk 0:00:02]} 59...
g2 {[%clk 0:00:05.9]} 60. c4 {[%clk 0:00:01]} 60... Rxb2 {[%clk 0:00:05.5]} 0-1

[Event "Late-Titled-Tuesday-Blitz-March-26-2024"]
[Site "Chess.com"]
[Date "2024.03.26"]
[Round "8"]
[White "Bryanl106"]
[Black "N_Mullodzhanov"]
[Result "1-0"]
[WhiteElo "2683"]
[BlackElo "2547"]
[TimeControl "180+1"]
[EndTime "15:29:02 PDT"]
[Termination "Bryanl106 won by checkmate"]

1. e4 {[%clk 0:02:57.8]} 1... c6 {[%clk 0:03:00.1]} 2. Nf3 {[%clk 0:02:56.3]}
2... d5 {[%clk 0:03:00.3]} 3. Nc3 {[%clk 0:02:56.9]} 3... Bg4 {[%clk 0:03:00.1]}
4. h3 {[%clk 0:02:56.1]} 4... Bxf3 {[%clk 0:03:00.1]} 5. Qxf3 {[%clk 0:02:57]}
5... e6 {[%clk 0:03:00.7]} 6. d3 {[%clk 0:02:53.6]} 6... Nd7 {[%clk 0:03:00.6]}
7. Be2 {[%clk 0:02:53.8]} 7... Ngf6 {[%clk 0:02:59]} 8. O-O {[%clk 0:02:53.5]}
8... Bc5 {[%clk 0:02:59.1]} 9. Qg3 {[%clk 0:02:53]} 9... O-O {[%clk 0:02:59.3]}
10. Bh6 {[%clk 0:02:51]} 10... Ne8 {[%clk 0:02:59.4]} 11. Bf4 {[%clk 0:02:39.2]}
11... a5 {[%clk 0:02:44.7]} 12. Nd1 {[%clk 0:02:33.4]} 12... a4 {[%clk
0:02:41.5]} 13. c3 {[%clk 0:02:33.7]} 13... Qe7 {[%clk 0:02:35]} 14. d4 {[%clk
0:02:31.7]} 14... Bd6 {[%clk 0:02:32.2]} 15. e5 {[%clk 0:02:31.9]} 15... Bc7
{[%clk 0:02:32]} 16. Ne3 {[%clk 0:02:32.2]} 16... f5 {[%clk 0:02:23.9]} 17. h4
{[%clk 0:02:18]} 17... Kh8 {[%clk 0:02:14.7]} 18. h5 {[%clk 0:02:16.5]} 18...
Rg8 {[%clk 0:02:07.8]} 19. Bg5 {[%clk 0:02:06.4]} 19... Qf7 {[%clk 0:02:06.6]}
20. Qh4 {[%clk 0:02:02.5]} 20... h6 {[%clk 0:01:40.8]} 21. Bf4 {[%clk
0:02:01.5]} 21... Bd8 {[%clk 0:01:40.8]} 22. Qg3 {[%clk 0:01:57.9]} 22... Nf8
{[%clk 0:01:31.6]} 23. Qh3 {[%clk 0:01:52]} 23... Bg5 {[%clk 0:01:26.5]} 24. Qg3
{[%clk 0:01:32.4]} 24... Bxf4 {[%clk 0:01:09.6]} 25. Qxf4 {[%clk 0:01:33.3]}
25... b5 {[%clk 0:01:05.5]} 26. b4 {[%clk 0:01:28.4]} 26... Qe7 {[%clk
0:01:02.2]} 27. g3 {[%clk 0:01:25.4]} 27... Nh7 {[%clk 0:00:55.7]} 28. Kg2
{[%clk 0:01:23.5]} 28... Ng5 {[%clk 0:00:53]} 29. f3 {[%clk 0:01:21.1]} 29...
Nc7 {[%clk 0:00:47]} 30. Bd3 {[%clk 0:01:19.8]} 30... Rgf8 {[%clk 0:00:44.3]}
31. g4 {[%clk 0:01:17.4]} 31... fxg4 {[%clk 0:00:36]} 32. Qxg4 {[%clk
0:01:18.3]} 32... Rf7 {[%clk 0:00:28.3]} 33. Bg6 {[%clk 0:01:16.6]} 33... Rff8
{[%clk 0:00:27.9]} 34. Rf2 {[%clk 0:01:15.4]} 34... Rad8 {[%clk 0:00:22.6]} 35.
Rg1 {[%clk 0:01:14.3]} 35... Na8 {[%clk 0:00:22.7]} 36. Kf1 {[%clk 0:01:13.7]}
36... Nb6 {[%clk 0:00:23.1]} 37. Ke2 {[%clk 0:01:14.1]} 37... Nc4 {[%clk
0:00:23]} 38. Nxc4 {[%clk 0:01:14.5]} 38... dxc4 {[%clk 0:00:23]} 39. f4 {[%clk
0:01:12.7]} 39... Nh7 {[%clk 0:00:20.1]} 40. Be4 {[%clk 0:01:11.6]} 40... Rf7
{[%clk 0:00:19.7]} 41. f5 {[%clk 0:01:06.4]} 41... Ng5 {[%clk 0:00:18.6]} 42.
Bxc6 {[%clk 0:01:00.8]} 42... Rdf8 {[%clk 0:00:17.8]} 43. Rgf1 {[%clk
0:00:55.9]} 43... exf5 {[%clk 0:00:17.7]} 44. Rxf5 {[%clk 0:00:56.3]} 44... Qe6
{[%clk 0:00:15.7]} 45. Rxg5 {[%clk 0:00:45.8]} 45... Qxg4+ {[%clk 0:00:12.3]}
46. Rxg4 {[%clk 0:00:46.7]} 46... Rxf1 {[%clk 0:00:12.8]} 47. Bxb5 {[%clk
0:00:46.9]} 47... R8f2+ {[%clk 0:00:12.1]} 48. Ke3 {[%clk 0:00:47.2]} 48... Rf3+
{[%clk 0:00:12.3]} 49. Ke4 {[%clk 0:00:47.3]} 49... Rxc3 {[%clk 0:00:11.6]} 50.
e6 {[%clk 0:00:45]} 50... Re1+ {[%clk 0:00:11.1]} 51. Kd5 {[%clk 0:00:45.4]}
51... Rf3 {[%clk 0:00:10.7]} 52. Bxc4 {[%clk 0:00:36]} 52... Rf5+ {[%clk
0:00:03.9]} 53. Kd6 {[%clk 0:00:36]} 53... Rf6 {[%clk 0:00:03.5]} 54. b5 {[%clk
0:00:32.9]} 54... Kh7 {[%clk 0:00:03.7]} 55. b6 {[%clk 0:00:32.9]} 55... Rb1
{[%clk 0:00:03.8]} 56. Kc7 {[%clk 0:00:31.1]} 56... Rc1 {[%clk 0:00:03.6]} 57.
d5 {[%clk 0:00:31.6]} 57... g5 {[%clk 0:00:02.5]} 58. hxg6+ {[%clk 0:00:31.5]}
58... Rxg6 {[%clk 0:00:02.8]} 59. Rxg6 {[%clk 0:00:32.1]} 59... Kxg6 {[%clk
0:00:03.3]} 60. b7 {[%clk 0:00:30.9]} 60... Rxc4+ {[%clk 0:00:04.2]} 61. Kd8
{[%clk 0:00:29.9]} 61... Rb4 {[%clk 0:00:03.1]} 62. e7 {[%clk 0:00:30.3]} 62...
Rxb7 {[%clk 0:00:02.6]} 63. e8=Q+ {[%clk 0:00:30.9]} 63... Kg5 {[%clk
0:00:03.1]} 64. Qe5+ {[%clk 0:00:29.5]} 64... Kg4 {[%clk 0:00:02.6]} 65. d6
{[%clk 0:00:30]} 65... Rb8+ {[%clk 0:00:02.5]} 66. Kc7 {[%clk 0:00:30.2]} 66...
Rf8 {[%clk 0:00:01.6]} 67. d7 {[%clk 0:00:30]} 67... Rf5 {[%clk 0:00:01.6]} 68.
Qe4+ {[%clk 0:00:29.4]} 68... Rf4 {[%clk 0:00:02]} 69. Qg2+ {[%clk 0:00:29.8]}
69... Kh5 {[%clk 0:00:02]} 70. d8=Q {[%clk 0:00:30]} 70... Rf7+ {[%clk
0:00:02.1]} 71. Kc6 {[%clk 0:00:24.4]} 71... Rf6+ {[%clk 0:00:01.7]} 72. Qxf6
{[%clk 0:00:24.4]} 72... a3 {[%clk 0:00:01.4]} 73. Qfg6+ {[%clk 0:00:24.6]}
73... Kh4 {[%clk 0:00:01.5]} 74. Qxh6# {[%clk 0:00:25.5]} 1-0

[Event "Late-Titled-Tuesday-Blitz-March-26-2024"]
[Site "Chess.com"]
[Date "2024.03.26"]
[Round "8"]
[White "jstopa4"]
[Black "Keks2017"]
[Result "1-0"]
[WhiteElo "2739"]
[BlackElo "2573"]
[TimeControl "180+1"]
[EndTime "15:29:05 PDT"]
[Termination "jstopa4 won on time"]

1. d4 {[%clk 0:02:59.4]} 1... d6 {[%clk 0:02:59.7]} 2. e4 {[%clk 0:02:58.6]}
2... Nf6 {[%clk 0:02:59.7]} 3. Bd3 {[%clk 0:02:58.7]} 3... e5 {[%clk 0:02:59.1]}
4. c3 {[%clk 0:02:56.8]} 4... d5 {[%clk 0:02:58.6]} 5. dxe5 {[%clk 0:02:54.6]}
5... Nxe4 {[%clk 0:02:58.1]} 6. Nf3 {[%clk 0:02:55]} 6... Nc6 {[%clk 0:02:57.5]}
7. O-O {[%clk 0:02:52.8]} 7... Bg4 {[%clk 0:02:55.8]} 8. Bf4 {[%clk 0:02:32.4]}
8... Be7 {[%clk 0:02:54]} 9. h3 {[%clk 0:02:26.1]} 9... Bh5 {[%clk 0:02:53.6]}
10. b4 {[%clk 0:02:16.2]} 10... Qd7 {[%clk 0:02:47.9]} 11. b5 {[%clk 0:02:14.7]}
11... Nd8 {[%clk 0:02:47.7]} 12. Re1 {[%clk 0:01:50.2]} 12... Nc5 {[%clk
0:02:41.9]} 13. Be2 {[%clk 0:01:45.9]} 13... Nde6 {[%clk 0:02:41.5]} 14. Bg3
{[%clk 0:01:43.3]} 14... Ne4 {[%clk 0:02:39.6]} 15. Bh2 {[%clk 0:01:43.6]} 15...
O-O {[%clk 0:02:31.2]} 16. a4 {[%clk 0:01:39.9]} 16... Rad8 {[%clk 0:02:20.8]}
17. Nd4 {[%clk 0:01:34.5]} 17... Bxe2 {[%clk 0:02:19.3]} 18. Rxe2 {[%clk
0:01:33.2]} 18... Rfe8 {[%clk 0:02:07.9]} 19. Qc2 {[%clk 0:01:29.7]} 19... Bc5
{[%clk 0:01:58.7]} 20. Nb3 {[%clk 0:01:23.7]} 20... Bf8 {[%clk 0:01:51.3]} 21.
N1d2 {[%clk 0:01:22.4]} 21... Nxd2 {[%clk 0:01:48.3]} 22. Rxd2 {[%clk
0:01:22.5]} 22... c6 {[%clk 0:01:38.6]} 23. Qd3 {[%clk 0:01:01.2]} 23... Nc5
{[%clk 0:01:34.6]} 24. Nxc5 {[%clk 0:01:00.6]} 24... Bxc5 {[%clk 0:01:34.2]} 25.
Rad1 {[%clk 0:00:58.1]} 25... Qe6 {[%clk 0:01:28.6]} 26. Kf1 {[%clk 0:00:56.7]}
26... f6 {[%clk 0:01:18.1]} 27. Re2 {[%clk 0:00:50.9]} 27... fxe5 {[%clk
0:01:14.8]} 28. Bxe5 {[%clk 0:00:47.8]} 28... Qf7 {[%clk 0:01:13]} 29. Bd4
{[%clk 0:00:43.5]} 29... Rxe2 {[%clk 0:01:07.8]} 30. Qxe2 {[%clk 0:00:43.5]}
30... Bxd4 {[%clk 0:01:04.5]} 31. cxd4 {[%clk 0:00:43.5]} 31... Re8 {[%clk
0:01:01.9]} 32. Qg4 {[%clk 0:00:36.7]} 32... Qe6 {[%clk 0:00:55.8]} 33. Qxe6+
{[%clk 0:00:33.7]} 33... Rxe6 {[%clk 0:00:55.7]} 34. bxc6 {[%clk 0:00:33.8]}
34... Rxc6 {[%clk 0:00:51.3]} 35. Rb1 {[%clk 0:00:33.9]} 35... b6 {[%clk
0:00:51.1]} 36. Rb5 {[%clk 0:00:33.5]} 36... Rd6 {[%clk 0:00:51.1]} 37. a5
{[%clk 0:00:33.4]} 37... bxa5 {[%clk 0:00:49.2]} 38. Rxa5 {[%clk 0:00:33.7]}
38... a6 {[%clk 0:00:49.3]} 39. Ke2 {[%clk 0:00:34.1]} 39... Kf7 {[%clk
0:00:49.4]} 40. Ke3 {[%clk 0:00:34.4]} 40... Ke6 {[%clk 0:00:49.5]} 41. Rc5
{[%clk 0:00:31.6]} 41... Rb6 {[%clk 0:00:48.4]} 42. Rc8 {[%clk 0:00:31]} 42...
g6 {[%clk 0:00:43.8]} 43. Ra8 {[%clk 0:00:30.2]} 43... Kf6 {[%clk 0:00:30.1]}
44. h4 {[%clk 0:00:26.9]} 44... Ke6 {[%clk 0:00:26]} 45. g3 {[%clk 0:00:24.8]}
45... Kd6 {[%clk 0:00:24]} 46. Kf4 {[%clk 0:00:22.6]} 46... Kc6 {[%clk
0:00:20.1]} 47. Ra7 {[%clk 0:00:20.4]} 47... h6 {[%clk 0:00:18.3]} 48. Ke5
{[%clk 0:00:19.3]} 48... Kb5 {[%clk 0:00:17.9]} 49. Kxd5 {[%clk 0:00:19.2]}
49... a5 {[%clk 0:00:18.2]} 50. Ke5 {[%clk 0:00:18.9]} 50... Kc4 {[%clk
0:00:17.6]} 51. Rxa5 {[%clk 0:00:17.1]} 51... Rb2 {[%clk 0:00:17.5]} 52. Rc5+
{[%clk 0:00:16.7]} 52... Kd3 {[%clk 0:00:17.1]} 53. f4 {[%clk 0:00:17.6]} 53...
Re2+ {[%clk 0:00:16.5]} 54. Kf6 {[%clk 0:00:17.1]} 54... Kxd4 {[%clk 0:00:16.3]}
55. Re5 {[%clk 0:00:14.3]} 55... Rg2 {[%clk 0:00:15.9]} 56. Kxg6 {[%clk
0:00:14.3]} 56... Rxg3+ {[%clk 0:00:16.2]} 57. Kf5 {[%clk 0:00:12.5]} 57... h5
{[%clk 0:00:10.8]} 58. Ke6 {[%clk 0:00:09.2]} 58... Rg4 {[%clk 0:00:10.6]} 59.
f5 {[%clk 0:00:09.4]} 59... Rxh4 {[%clk 0:00:10.8]} 60. f6 {[%clk 0:00:09.5]}
60... Rf4 {[%clk 0:00:07.2]} 61. Rf5 {[%clk 0:00:09.3]} 61... Re4+ {[%clk
0:00:05.6]} 62. Kd7 {[%clk 0:00:08.3]} 62... Re5 {[%clk 0:00:03.2]} 63. Rxe5
{[%clk 0:00:08.1]} 63... Kxe5 {[%clk 0:00:03.6]} 64. f7 {[%clk 0:00:09]} 64...
h4 {[%clk 0:00:04]} 65. f8=Q {[%clk 0:00:09.4]} 65... h3 {[%clk 0:00:04.9]} 66.
Qh8+ {[%clk 0:00:09.1]} 66... Kf4 {[%clk 0:00:04.9]} 67. Qxh3 {[%clk 0:00:10]}
1-0

[Event "Late-Titled-Tuesday-Blitz-March-26-2024"]
[Site "Chess.com"]
[Date "2024.03.26"]
[Round "8"]
[White "YegoryoCh"]
[Black "promen1999"]
[Result "0-1"]
[WhiteElo "2576"]
[BlackElo "2847"]
[TimeControl "180+1"]
[EndTime "15:29:07 PDT"]
[Termination "promen1999 won by resignation"]

1. e4 {[%clk 0:03:00.9]} 1... c5 {[%clk 0:02:59.5]} 2. Nf3 {[%clk 0:03:00.9]}
2... d6 {[%clk 0:02:59.8]} 3. d4 {[%clk 0:03:01.2]} 3... cxd4 {[%clk 0:02:59.8]}
4. Nxd4 {[%clk 0:03:02.1]} 4... Nf6 {[%clk 0:02:59.8]} 5. Nc3 {[%clk 0:03:02.4]}
5... Bd7 {[%clk 0:02:58.9]} 6. Bg5 {[%clk 0:03:01.6]} 6... Nc6 {[%clk
0:02:58.1]} 7. Qd2 {[%clk 0:03:01.7]} 7... Rc8 {[%clk 0:02:57.1]} 8. O-O-O
{[%clk 0:02:58.8]} 8... a6 {[%clk 0:02:51.4]} 9. f4 {[%clk 0:02:57.2]} 9... Qb6
{[%clk 0:02:41.4]} 10. Kb1 {[%clk 0:02:32.1]} 10... Nxd4 {[%clk 0:02:34.9]} 11.
Qxd4 {[%clk 0:02:32.2]} 11... Qxd4 {[%clk 0:02:34.9]} 12. Rxd4 {[%clk
0:02:33.1]} 12... e6 {[%clk 0:02:35.2]} 13. Bxf6 {[%clk 0:02:25.6]} 13... gxf6
{[%clk 0:02:34.7]} 14. a4 {[%clk 0:02:23.6]} 14... h5 {[%clk 0:02:32.4]} 15. Be2
{[%clk 0:02:19.7]} 15... Bc6 {[%clk 0:02:29.8]} 16. Rf1 {[%clk 0:02:14.4]} 16...
h4 {[%clk 0:02:19.7]} 17. a5 {[%clk 0:02:07.5]} 17... Rg8 {[%clk 0:02:17.7]} 18.
Bf3 {[%clk 0:02:04.2]} 18... Ke7 {[%clk 0:02:17.1]} 19. Rfd1 {[%clk 0:02:03.9]}
19... Bh6 {[%clk 0:02:12]} 20. Ne2 {[%clk 0:01:59.3]} 20... Rcd8 {[%clk
0:02:06.1]} 21. c4 {[%clk 0:01:56.3]} 21... e5 {[%clk 0:02:03.3]} 22. R4d3
{[%clk 0:01:51.7]} 22... Bxf4 {[%clk 0:01:40]} 23. Nxf4 {[%clk 0:01:51.1]} 23...
exf4 {[%clk 0:01:40.9]} 24. R1d2 {[%clk 0:01:29.1]} 24... Rg5 {[%clk 0:01:29]}
25. b4 {[%clk 0:01:28.4]} 25... Re5 {[%clk 0:01:28.9]} 26. Rd4 {[%clk
0:01:28.4]} 26... h3 {[%clk 0:01:19.4]} 27. c5 {[%clk 0:01:24.6]} 27... hxg2
{[%clk 0:01:16.2]} 28. Bxg2 {[%clk 0:01:21.4]} 28... f5 {[%clk 0:01:07]} 29.
cxd6+ {[%clk 0:01:15]} 29... Kf6 {[%clk 0:01:06.7]} 30. exf5 {[%clk 0:01:09.3]}
30... f3 {[%clk 0:01:06.7]} 31. Bh3 {[%clk 0:01:01.3]} 31... Re3 {[%clk
0:01:01.7]} 32. Bg4 {[%clk 0:00:54]} 32... Ke5 {[%clk 0:00:51.5]} 33. Kc2 {[%clk
0:00:42.2]} 33... f2 {[%clk 0:00:36.2]} 34. Be2 {[%clk 0:00:29.5]} 34... Rxe2
{[%clk 0:00:35]} 35. Rxe2+ {[%clk 0:00:30.4]} 35... Kxd4 {[%clk 0:00:35.2]} 36.
Rxf2 {[%clk 0:00:30.9]} 36... Rxd6 {[%clk 0:00:35.1]} 37. Re2 {[%clk 0:00:27.3]}
37... Be4+ {[%clk 0:00:33.5]} 38. Kb2 {[%clk 0:00:27]} 38... Bxf5 {[%clk
0:00:33.3]} 39. h4 {[%clk 0:00:27.6]} 39... Kc4 {[%clk 0:00:26.9]} 40. Re7
{[%clk 0:00:27]} 40... Kxb4 {[%clk 0:00:15]} 41. Rxb7+ {[%clk 0:00:23.8]} 41...
Kxa5 {[%clk 0:00:14.7]} 42. Rxf7 {[%clk 0:00:24.4]} 42... Bg6 {[%clk 0:00:12.3]}
43. Rf4 {[%clk 0:00:23.1]} 43... Kb6 {[%clk 0:00:09.7]} 44. Ka3 {[%clk
0:00:20.7]} 44... a5 {[%clk 0:00:10.1]} 45. Rg4 {[%clk 0:00:18.2]} 45... Rd3+
{[%clk 0:00:09.2]} 46. Kb2 {[%clk 0:00:17.9]} 46... Bf7 {[%clk 0:00:09.1]} 47.
Rf4 {[%clk 0:00:17]} 47... Rd7 {[%clk 0:00:08.2]} 48. Rf5 {[%clk 0:00:16.3]}
48... a4 {[%clk 0:00:04.5]} 49. Ka3 {[%clk 0:00:13.6]} 49... Bb3 {[%clk
0:00:04.5]} 50. Rf6+ {[%clk 0:00:10.6]} 50... Kc5 {[%clk 0:00:04]} 51. Rf4
{[%clk 0:00:10.2]} 51... Rd3 {[%clk 0:00:03.5]} 52. Kb2 {[%clk 0:00:09.1]} 52...
Kb5 {[%clk 0:00:03]} 53. Rg4 {[%clk 0:00:07.5]} 53... Bd5 {[%clk 0:00:02.8]} 54.
Rf4 {[%clk 0:00:07.6]} 54... a3+ {[%clk 0:00:03.2]} 55. Kc1 {[%clk 0:00:06.1]}
55... a2 {[%clk 0:00:03.3]} 56. Kb2 {[%clk 0:00:06.1]} 56... Rd2+ {[%clk
0:00:03.4]} 57. Kc3 {[%clk 0:00:02.3]} 57... a1=Q+ {[%clk 0:00:03.4]} 58. Kxd2
{[%clk 0:00:03.2]} 58... Qb2+ {[%clk 0:00:02.3]} 59. Ke3 {[%clk 0:00:03.8]}
59... Qc3+ {[%clk 0:00:02.5]} 60. Kf2 {[%clk 0:00:04]} 60... Qd2+ {[%clk
0:00:02.8]} 61. Kg3 {[%clk 0:00:04.9]} 61... Qe3+ {[%clk 0:00:02.5]} 62. Kg4
{[%clk 0:00:02.9]} 62... Be6+ {[%clk 0:00:02.9]} 63. Kg5 {[%clk 0:00:03.8]}
63... Qg3+ {[%clk 0:00:03.1]} 64. Kf6 {[%clk 0:00:04]} 64... Qxf4+ {[%clk
0:00:03.6]} 65. Kxe6 {[%clk 0:00:04.9]} 65... Qxh4 {[%clk 0:00:04.2]} 66. Ke5
{[%clk 0:00:05.8]} 66... Qg5+ {[%clk 0:00:04.5]} 67. Kd4 {[%clk 0:00:06.7]}
67... Qf5 {[%clk 0:00:04.5]} 0-1